Cogmind - Beta 15 @@@ ROGUE MODE // 2025.07.18 @ 01:13:17 Player: amhumam Result: Destroyed by D-53 Grenadier with Mini Grenade Launcher Performance ------------- Evolutions (0) 0 Regions Visited (3) 600 Robots Destroyed (18) 90 Value Destroyed (515) 515 Prototype IDs (11) 220 Alien Tech Used (0) 0 Bonus (0) 0 TOTAL SCORE: 1425 Bonus ------- None Cogmind --------- Core Integrity 0/250 Matter 295/300 Energy 246/250 System Corruption 6% Temperature Warm (158) Movement Rolling (155) Ox5 Location -9/Recycling Parts ------- > --- POWER (1) -------- Ion Engine > --- PROPULSION (2) --- Wheel > --- UTILITY (2) ------ High-capacity Storage Unit Subdweller Optics > --- WEAPON (2) ------- Subdweller Beam Cannon > --- INVENTORY (20) --- Subdweller Power Source Subdweller Power Source Meta Core Subdweller Monowheel Large Storage Unit Machine Analyzer Scrap Shield Makeshift System Shield Makeshift Laser Subdweller Beam Cannon Battle Rifle Battle Cannon Mini Grenade Launcher Mini Grenade Launcher Subdweller Shrapnel Launcher Subdweller Shrapnel Launcher Datajack Mining Laser Piercing Trap Peak State ------------ > --- POWER ------------ Subdweller Power Source > --- PROPULSION ------- Wheel Subdweller Monowheel > --- UTILITY ---------- High-capacity Storage Unit Subdweller Optics > --- WEAPON ----------- Subdweller Beam Cannon Battle Rifle > --- INVENTORY -------- Subdweller Power Source Meta Core Wheel Large Storage Unit Machine Analyzer Makeshift Light Armor Plating Scrap Shield Makeshift System Shield Makeshift Laser Subdweller Beam Cannon Assault Rifle Mini Grenade Launcher Mini Grenade Launcher Subdweller Shrapnel Launcher Subdweller Shrapnel Launcher Datajack Mining Laser Flamer Piercing Trap [Rating: 17] Favorites ----------- Power Ion Engine Engine Ion Engine Propulsion Wheel Treads Light Treads Wheel Wheel Utility High-capacity Storage Unit Device Subdweller Optics Storage High-capacity Storage Unit Weapon Battle Rifle Energy Gun Small Laser Energy Cannon Subdweller Beam Cannon Ballistic Gun Battle Rifle Ballistic Cannon Battle Cannon Launcher Mini Grenade Launcher Special Weapon Mining Laser Build | -11 -10 -10 -9 ------- Run | Yrd Mat Sub Rec Slots Evolved . | . . . . Power . | . . . . Propulsion . | . . . . Utility . | . . . . Weapon . | . . . . Parts Attached 25 | 6 3 15 1 Power 4 | 1 1 2 . Engine 4 | 1 1 2 . Core . | . . . . Reactor . | . . . . Propulsion 6 | 2 . 4 . Treads 2 | 2 . . . Leg . | . . . . Wheel 4 | . . 4 . Hover . | . . . . Flight . | . . . . Utility 5 | 1 2 2 . Device 2 | . 1 1 . Storage 3 | 1 1 1 . Processor . | . . . . Hackware . | . . . . Protection . | . . . . Artifact . | . . . . Weapon 10 | 2 . 7 1 Energy Gun 2 | 1 . 1 . Energy Cannon 2 | . . 2 . Ballistic Gun 3 | 1 . 2 . Ballistic Cannon 1 | . . . 1 Launcher 1 | . . 1 . Special Weapon 1 | . . 1 . Impact Weapon . | . . . . Slashing Weapon . | . . . . Piercing Weapon . | . . . . Special Melee Weapon . | . . . . Unidentified Prototypes . | . . . . Parts Lost 2 | . . . 2 Power . | . . . . Propulsion 1 | . . . 1 Utility . | . . . . Weapon 1 | . . . 1 Highest Loss Streak 2 | . . . 2 To Critical Strikes . | . . . . Average Backups 15 | 1 9 17 18 Power 1 | . 1 1 2 Propulsion . | . . 1 1 Utility 4 | . 2 5 4 Weapon 7 | . 4 9 9 Tool/Special . | . . . . Unused Backups 23 | . 2 11 10 Power 1 | . . 1 . Propulsion . | . . . . Utility 8 | . . 5 3 Weapon 12 | . 2 5 5 Tool/Special 2 | . . . 2 Average Slot Usage (%) 99 | . 97 100 98 Engine 14 | . 14 14 14 Treads 9 | . 28 5 . Wheel 18 | . . 22 27 Device 13 | . 10 14 14 Storage 14 | . 15 14 14 Energy Gun 3 | . 14 . . Energy Cannon 4 | . . 5 14 Ballistic Gun 12 | . 14 13 . Launcher 3 | . . 3 4 Special Weapon 3 | . . 4 . Peak Build Rating 17 | 6 8 17 15 Average Rating 12 | 5 7 13 14 On Entrance 7 | . 6 8 15 Naked Turns . | . . . . Heaviest Build 58 | 11 31 57 58 Greatest Support 40 | 40 40 40 20 Greatest Overweight (x) 5 | 3 . 5 5 Average Overweight (x) 1 | . . 1 2 Largest Inventory Capacity 20 | 8 15 20 20 Average Capacity 17 | 7 13 19 20 Most Carried 20 | 2 15 20 20 Average Carried 16 | 1 9 19 20 Final Capacity 20 | 8 15 20 20 Final Carried 20 | 2 15 20 20 Class Distribution -------------------- 98% | Mutant Dominant Class ---------------- Mutant | -10/Materials Mutant | -10/Subcaves Mutant | -9/Recycling Resources | -11 -10 -10 -9 ----------- Run | Yrd Mat Sub Rec Matter Collected 727 | 238 78 328 83 Remotely . | . . . . Salvage Created 568 | . 43 470 55 Parts 45 | . 3 36 6 Haulers Intercepted . | . . . . Recyclers Shooed . | . . . . Parts Field Recycled . | . . . . Retrieved Matter . | . . . . Parts Self-Destructed 17 | . . 17 . Prevented . | . . . . Kills | -11 -10 -10 -9 ------- Run | Yrd Mat Sub Rec Combat Hostiles Destroyed 18 | . 1 16 1 Guns 7 | . 1 6 . Cannons 4 | . . 3 1 AOE 7 | . . 7 . Classes Destroyed 4 | . 1 3 . Swarmer 7 | . . 7 . Grunt 3 | . 1 2 . Sentry 2 | . . 1 1 Subdweller 6 | . . 6 . Best Kill Streak 4 | . 1 4 1 Combat Bots Only 4 | . 1 4 1 Max Kills in Single Turn 3 | . 1 3 1 Gunslinging . | . . . . Exploded 2 | . . 2 . Melee . | . . . . Uniques/NPCs Destroyed . | . . . . Combat | -11 -10 -10 -9 -------- Run | Yrd Mat Sub Rec Hostile Shots Fired 56 | . 12 22 22 Missed 14 | . 6 5 3 Hits 42 | . 6 17 19 Projectile 42 | . 6 17 19 AOE 6 | . . . 6 Damage Taken 959 | . 168 371 420 Core 250 | . 35 105 110 Absorbed by Shields . | . . . . Core Remaining (%) 100 | 100 . . . Volleys Fired 78 | . 12 62 4 Largest 2 | . 2 2 2 Hottest 125 | . 60 125 113 Shots Fired 116 | . 24 85 7 Gun 48 | . 24 24 . Cannon 28 | . . 21 7 Launcher 9 | . . 9 . Special 31 | . . 31 . Kinetic 37 | . 12 22 3 Thermal 70 | . 12 54 4 Explosive 9 | . . 9 . Electromagnetic . | . . . . Robot Hit Streak 31 | . 3 31 2 Robot Miss Streak 3 | . 3 2 1 Penetration Max . | . . . . Secondary Targets . | . . . . Shots Hit Robots 47 | . 12 31 4 Core Hits 30 | . 4 25 1 Critical Kills . | . . . . Critical Parts Destroyed . | . . . . Critical Strikes . | . . . . Melee Attacks . | . . . . Impact . | . . . . Slashing . | . . . . Piercing . | . . . . Sneak Attacks . | . . . . Combat Hostiles . | . . . . Follow-up Attacks . | . . . . Damage Inflicted 1305 | . 157 1031 117 Guns 404 | . 157 247 . Cannons 338 | . . 221 117 Explosions 563 | . . 563 . Melee . | . . . . Ramming . | . . . . Kinetic 379 | . 80 229 70 Thermal 363 | . 77 239 47 Explosive 563 | . . 563 . Electromagnetic . | . . . . Impact . | . . . . Slashing . | . . . . Piercing . | . . . . Highest Corruption 6 | . 2 2 6 Average Corruption 2 | . 2 2 2 Corruption Purged . | . . . . Corruption Blocked . | . . . . Effects 25 | . 3 22 . Message Errors 8 | . 1 7 . Matter Fused 3 | . . 3 . Heat Flow Errors 4 | . 1 3 . Energy Discharges 3 | . . 3 . Data Loss (minor) 5 | . 1 4 . Misfires 1 | . . 1 . Alerts 1 | . . 1 . Overload Shots . | . . . . Overflow Damage 10 | . . . 10 Projectiles 10 | . . . 10 Explosions . | . . . . Melee . | . . . . Knockbacks . | . . . . Impact . | . . . . Kinetic . | . . . . Secondary . | . . . . Self-Inflicted Damage . | . . . . Shots . | . . . . Rammed . | . . . . Targets Rammed . | . . . . Kicked . | . . . . Crushed . | . . . . Highest Temperature 213 | . 143 213 158 Average Temperature 34 | . 32 28 62 Received Heat Transfer 123 | . 36 87 . Siege Activations . | . . . . Martial Activations . | . . . . Shielding Activations . | . . . . Robots Disrupted . | . . . . Combat Hostiles . | . . . . Robots Corrupted . | . . . . Combat Hostiles . | . . . . Parts Fried . | . . . . Impact Corruptions . | . . . . Robots Melted . | . . . . Combat Hostiles . | . . . . Parts Melted . | . . . . Heat Transferred 582 | . 175 333 74 Parts Sabotaged . | . . . . Parts Stolen . | . . . . Parts Stripped . | . . . . Power Chain Reactions . | . . . . Alert | -11 -10 -10 -9 ------- Run | Yrd Mat Sub Rec Maximum Alert Level . | . . . . Low Security (%) 100 | 100 100 . 100 Level 1 . | . . . . Level 2 . | . . . . Level 3 . | . . . . Level 4 . | . . . . Level 5 . | . . . . High Security . | . . . . Max Security . | . . . . Peak Influence 103 | . 30 . 103 Initial 82 | . . . 82 Average 16 | . 4 . 85 Influence Increases 416 | . 80 280 56 Destroy 0b10 Robot/C 240 | . 20 200 20 Destroy Leader 20 | . . 20 . Successful Hack 5 | . . . 5 Select Force Hacks 90 | . 60 . 30 Destroy Structure 1 | . . . 1 Lose Combat Pursuer 60 | . . 60 . Influence Decreases 358 | . 66 122 170 Entered New Map 97 | . . 7 90 Time Decay 241 | . 66 115 60 Lost Part 20 | . . . 20 Squads Dispatched 3 | . 3 . . Investigation 2 | . 2 . . Extermination . | . . . . Reinforcement 1 | . 1 . . Assault . | . . . . Garrison . | . . . . Intercept . | . . . . Searches Triggered . | . . . . Construction Impeded . | . . . . Haulers Reinforced . | . . . . Active Scanning Responses . | . . . . Cargo Convoy Interrupts . | . . . . Stealth | -11 -10 -10 -9 --------- Run | Yrd Mat Sub Rec Distress Signals . | . . . . Communications Jammed . | . . . . Distress Signals . | . . . . Times Spotted 25 | . 6 15 4 Peak Tracking Total 4 | . 2 4 3 Tactical Retreats 1 | . . 1 . Traps | -11 -10 -10 -9 ------- Run | Yrd Mat Sub Rec Traps Triggered 2 | . 1 1 . Indirectly . | . . . . Trap Hack Attempts . | . . . . Triggered . | . . . . Disarmed . | . . . . Reprogrammed . | . . . . Reused . | . . . . Traps Extracted . | . . . . Installed . | . . . . Triggered . | . . . . Most Traps Carried 1 | . . 1 1 Machines | -11 -10 -10 -9 ---------- Run | Yrd Mat Sub Rec Machines Disabled 1 | . . 1 . Max in Single Turn 1 | . . 1 . Machines Repaired . | . . . . Machines Dismantled . | . . . . Machines Sabotaged . | . . . . Overloaded Fab Kills . | . . . . Hacking | -11 -10 -10 -9 --------- Run | Yrd Mat Sub Rec Machines Accessed 11 | . 6 2 3 Terminals 6 | . 4 . 2 Fabricators . | . . . . Repair Stations . | . . . . Recycling Units 3 | . 2 . 1 Scanalyzers . | . . . . Garrison Access . | . . . . Total Hacks 30 | . 10 11 9 Successful 20 | . 5 11 4 Failed 10 | . 5 . 5 Catastrophic 2 | . 2 . . Database Lockouts . | . . . . Manual 15 | . 10 . 5 Terminals 15 | . 8 . 7 Fabricators . | . . . . Repair Stations . | . . . . Recycling Units 4 | . 2 . 2 Scanalyzers . | . . . . Garrison Access . | . . . . Terminal Hacks 15 | . 2 11 2 Record 10 | . . 10 . Part Schematic 1 | . . . 1 Robot Analysis 1 | . 1 . . Alert Level 2 | . 1 . 1 Proto ID Catalog 1 | . . 1 . Fabricator Hacks . | . . . . Repair Station Hacks . | . . . . Recycling Unit Hacks . | . . . . Scanalyzer . | . . . . Garrison Access Hacks . | . . . . Unauthorized Hacks 5 | . 3 . 2 Terminals 2 | . 1 . 1 Botnet 2 | . 1 . 1 Fabricators . | . . . . Repair Stations . | . . . . Recycling Units 3 | . 2 . 1 Tunnel 3 | . 2 . 1 Scanalyzers . | . . . . Garrison Access . | . . . . Data Cores Recovered . | . . . . Used . | . . . . Hacking Detections 6 | . 4 . 2 Full Trace Events 1 | . . . 1 Feedback Events . | . . . . Feedback Blocked . | . . . . Robot Schematics Acquired . | . . . . Robots Built . | . . . . Authchips . | . . . . Time . | . . . . Total Robot Build Rating . | . . . . Part Schematics Acquired 1 | . . . 1 Parts Built . | . . . . Authchips . | . . . . Time . | . . . . Total Part Build Rating . | . . . . Parts Repaired . | . . . . Time . | . . . . Parts Recycled . | . . . . Recycled Matter . | . . . . Retrieved Matter . | . . . . Retrieved Components . | . . . . Parts Scanalyzed . | . . . . Part Schematics Acquired . | . . . . Parts Damaged . | . . . . Bothacking | -11 -10 -10 -9 ------------ Run | Yrd Mat Sub Rec Used RIF Installer . | . . . . Robots Hacked . | . . . . Non-combat . | . . . . Combat . | . . . . Robot Hacks Applied . | . . . . Relay Couplers Released . | . . . . Fabnet Peak Effective % . | . . . . Robots Rewired . | . . . . Allies Hacked . | . . . . Hacks Repelled . | . . . . Allies | -11 -10 -10 -9 -------- Run | Yrd Mat Sub Rec Total Allies . | . . . . Largest Group . | . . . . Highest-Rated Group . | . . . . Highest-Rated Ally . | . . . . Total Orders . | . . . . Ally Attacks . | . . . . Total Damage . | . . . . Kills . | . . . . Allies Corrupted . | . . . . Allies Melted . | . . . . Intel | -11 -10 -10 -9 ------- Run | Yrd Mat Sub Rec Active Infowar (turns) 2774 | . 472 2174 128 Optics 1429 | . . 1301 128 Seismic 1345 | . 472 873 . Robot Analysis Total 1 | . 1 . . Derelict Logs Recovered 1 | . . 1 . Drone Launches . | . . . . Drone Recoveries . | . . . . Exploration | -11 -10 -10 -9 ------------- Run | Yrd Mat Sub Rec Turns Passed 2985 | 62 621 2174 128 Spaces Moved 2116 | 34 348 1633 101 Core 6 | 6 . . . Treads 557 | 28 348 181 . Legs . | . . . . Wheels 1553 | . . 1452 101 Hover . | . . . . Flight . | . . . . Fastest Speed 50 | 50 160 107 110 Average Speed 123 | 152 160 116 110 Slowest Speed 200 | 200 160 160 155 Overloaded Moves . | . . . . Propulsion Burnouts . | . . . . Robots Hopped . | . . . . Potential Cave-ins . | . . . . Cave-ins Triggered . | . . . . Exploration Rate (%) 52 | 4 75 89 41 Regions Visited 3 Branch Regions 2 Pre-discovered Areas 6 | . 2 3 1 Known Exits Taken . | . . . . Unknown Exits Taken 3 | 1 1 1 . Scrap Searched 8 | . . 8 . Spaces Dug 3 | . . 3 . Terrain Destroyed 62 | . . 60 2 Melee . | . . . . Projectile 5 | . . 3 2 AOE 57 | . . 57 . Terrain Rammed . | . . . . Walls Destroyed . | . . . . Machines Disabled . | . . . . Actions | -11 -10 -10 -9 --------- Run | Yrd Mat Sub Rec Total 2303 | 41 389 1764 109 Wait 15 | . 8 4 3 Move 2113 | 33 347 1632 101 Hop . | . . . . Pick Up 38 | 2 15 21 . Fast Attach 14 | 6 2 6 . Attach . | . . . . Detach 1 | . . 1 . Swap 17 | . 1 15 1 Drop 27 | . 4 23 . Fire 78 | . 12 62 4 Melee . | . . . . Ram . | . . . . Kick . | . . . . Crush . | . . . . Escape Stasis . | . . . . Rewire . | . . . . Trap . | . . . . Miscellaneous . | . . . . Route ------- -11/Scrapyard -10/Materials (discovered 4 exits: [*Mat x2] / [*Min] / *Sub) -10/Subcaves (discovered 2 exits: [*Mat] / *Rec) -9/Recycling History --------- Turn | Location | Event 16 | -11/Scrapyard | Discovered new exit (range 15) 63 | -11/Scrapyard | Entered Materials 121 | -10/Materials | Discovered new exit (range 5) 170 | -10/Materials | Discovered new exit (range 14) 309 | -10/Materials | Build established: Mutant 347 | -10/Materials | Discovered new exit (range 15) 676 | -10/Materials | Discovered new exit (range 4) 684 | -10/Materials | Entered Subcaves 685 | -10/Subcaves | Shifting Twisted Machinery released Battle Rifle 685 | -10/Subcaves | Approached by a straggling Scientist 726 | -10/Subcaves | Learned location of Zion (-6) 726 | -10/Subcaves | Met a Zionite searching for "candidates" 779 | -10/Subcaves | Shifting Twisted Machinery released Sub. Shrapnel Launcher 1093 | -10/Subcaves | Discovered new exit (range 15) 1189 | -10/Subcaves | Shifting Twisted Machinery released Shrapnel Trap 1198 | -10/Subcaves | Shifting Twisted Machinery released Sub. Monowheel 1200 | -10/Subcaves | A swath of the cavern ceiling suddenly collapsed 1297 | -10/Subcaves | A swath of the cavern ceiling suddenly collapsed 1806 | -10/Subcaves | Shifting Twisted Machinery released Sub. Beam Cannon 2072 | -10/Subcaves | Visited 4L-MR0's lab 2082 | -10/Subcaves | Found Prototype Power Core 2102 | -10/Subcaves | Identified Meta Core 2257 | -10/Subcaves | Visited Clippyterm 2260 | -10/Subcaves | Learned location of Extension (-4) 2684 | -10/Subcaves | Core integrity fell below 50% 2855 | -10/Subcaves | Discovered new exit (range 3) 2858 | -10/Subcaves | Entered Recycling 2984 | -9/Recycling | Core integrity fell below 20% 2986 | -9/Recycling | Destroyed by D-53 Grenadier with Mini Grenade Launcher Last Messages --------------- Current Alert Level: Low Security 02969_ Acquired 28 matter. 02974_ P-60 Hacker springs to life. 02974_ D-53 Grenadier springs to life. 02974_ T-07 Excavator destroyed. 02974_ Y-45 Defender destroyed. 02975_ P-60 Hacker springs to life. 02975_ Wheel destroyed. 02976_ U-05 Engineer lays Concrete. 02978_ Destroyed Com. Battery. 02978_ Destroyed Remote Shield. 02979_ U-05 Engineer lays Concrete. 02980_ R-06 Scavenger destroyed. 02980_ R-06 Scavenger collects Beam Rifle. 02980_ U-05 Engineer lays Concrete. 02984_ The unstable cave ceiling collapses. 02984_ Battle Cannon destroyed. 02984_ R-06 Scavenger collects Lgt. Treads. 02984_ U-05 Engineer builds a Wall. 02984_ U-05 Engineer lays Concrete. Map ----- +----------------------------------------------------+ | | | | | | | ?????????????????????????????????????????????????? | | ?????????????????????????????????????????????????? | | ?????????????????????????????????????????????????? | | ?????????????????????????????????????????????????? | | ?????????????????????????????????????????????????? | | ?????????????????????????????????????????????????? | | ?????????????????????????????????????????????????? | | ?????????????????????????????????????????????????? | | ?????????????????????????????????????????????????? | | ?????????????????????????????????????????????????? | | ?????????????????????????????????????????????????? | | ?????????????????????????????????????????????????? | | ???????????????###########???????????????????????? | | ???????????????# i [ i #???????????????????????? | | ???????????????#i b %s#???????????????????????? | | ???????????????#tk a Yd#???##??????????????????? | | ???????????????# h gi ##? ???????????????????? | | ???????????????# p !ip ## #???????????????????? | | ???????????????# spr%% #???????????????????? | | ???????????????#] !!r d ##??????????????????? | | ???????????????# #??????????????????? | | ???""" ##########+## #??????????????????? | | + u @ % #??????????????????? | | ####### ##??????????????????? | | ???????????????# #???????????????????? | | ???????????????# rru ##???????????????????? | | ???????????????# u ###???????????????????? | | ???????????????# r##?????????????????????? | | ????????########+##+## #####??????????????????? | | ????????# # #"T"##### #########????? | | ????????# """ # r !!?? | | ????????# "T" # !!?? | | ????????# + #??? | | ????????# """ # #??? | | ????????# """"" # #####+#####??? | | ????????# """"" # ###### #????????????? | | ????????# """"" # ###??? #????????????? | | ????????# """ # ""#???? #????????????? | | ????????# # Y"#????? #????????????? | | ????????# # ""#????? #????????????? | | ????????# # ###?????? #???????????? | | ????????############## !#??????? ##???????????? | | ?????????????????????# !!#??????? %????????????? | | ?????????????????????# !!#????????%%???????????? | | ?????????????????????# ###?????????%#??????????? | | ?????????????????????# #????????????#??????????? | | ????????###########??# #???????????????????????? | +----------------------------------------------------+ Best States ------------- Heat Dissipation 25 Energy Generation 15 Energy Capacity 250 Matter Stores 300 Matter Capacity 300 Sight Range 21 Terrain Scan Density 10 Evasion (%) 40 Recoil Reduction 2 Item Schematics ----------------- Med. Armor Plating | -9/Recycling | Hacked Robot Schematics ------------------ None Fabricated ------------ Nothing Repaired ---------- Nothing Alien Tech Used ----------------- None Achievements -------------- None Challenges ------------ None Game ------ Seed StorageComponentBlade Manual? 0 Play Time 00:32:55 Cumulative 254.1 hours Start 2025.07.18 @ 00:07:27 End 2025.07.18 @ 01:13:17 Sessions 3 Manual Loads 0 Difficulty Rogue Special Mode None Game No. 223 Rogue 223 Adventurer 0 Explorer 0 Win Type - Total 1 Types 1/0/0/0/0/0/0/0/0/0 Lore% 76 Gallery% 63 Achievement% 54 Wizard Run 0 Options --------- Layout 1 ASCII 0 Keyboard 0 Movement Mouse Keybinds 0 Fullscreen 1 Font 24/Smallcaps Map View 50x35 Zoom Use 2% Tactical HUD 1 Map Filters NONE Filters NONE Steam 1 RUN: 797635b0-7471-481a-ace3-428e85122558